[Event "Titled Tuesday Blitz May 18 2021"]
[White "Sanal, Vahap"]
[Black "Nakamura, Hikaru"]
[WhiteFideId "6300545"]
[BlackFideId "2016192"]
[WhiteElo "2507"]
[BlackElo "2900"]
[Result "0-1"]
[Round "05"]
[TimeControl "180+1"]
[Date "2021.05.18"]
[WhiteClock "0:00:02"]
[BlackClock "0:00:22"]

1. e4 {[%clk 0:03:00]}  e5 {[%clk 0:02:52]} 2. Nf3 {[%clk 0:02:56]}  Nc6 {[%clk 0:02:50]} 3. Bb5 {[%clk 0:02:55]}  a6 {[%clk 0:02:49]} 4. Ba4 {[%clk 0:02:52]}  g6 {[%clk 0:02:50]} 5. c3 {[%clk 0:02:46]}  b5 {[%clk 0:02:45]} 6. Bb3 {[%clk 0:02:44]}  Bg7 {[%clk 0:02:44]} 7. O-O {[%clk 0:02:42]}  Nge7 {[%clk 0:02:41]} 8. a4 {[%clk 0:02:39]}  b4 {[%clk 0:02:32]} 9. d4 {[%clk 0:02:29]}  bxc3 {[%clk 0:02:14]} 10. bxc3 {[%clk 0:02:29]}  exd4 {[%clk 0:02:12]} 11. cxd4 {[%clk 0:02:29]}  O-O {[%clk 0:02:12]} 12. Nc3 {[%clk 0:02:26]}  d6 {[%clk 0:02:10]} 13. h3 {[%clk 0:02:24]}  Na5 {[%clk 0:02:07]} 14. Ba2 {[%clk 0:02:22]}  c5 {[%clk 0:02:05]} 15. Be3 {[%clk 0:02:19]}  Be6 {[%clk 0:01:57]} 16. Bxe6 {[%clk 0:02:14]}  fxe6 {[%clk 0:01:57]} 17. Rc1 {[%clk 0:02:13]}  Nc4 {[%clk 0:01:31]} 18. Bg5 {[%clk 0:01:59]}  h6 {[%clk 0:01:27]} 19. Bh4 {[%clk 0:01:55]}  cxd4 {[%clk 0:01:11]} 20. Nxd4 {[%clk 0:01:54]}  Qd7 {[%clk 0:01:12]} 21. Nce2 {[%clk 0:01:40]}  Rac8 {[%clk 0:01:07]} 22. Qb3 {[%clk 0:01:34]}  d5 {[%clk 0:01:02]} 23. Rfd1 {[%clk 0:01:22]}  g5 {[%clk 0:00:58]} 24. Bg3 {[%clk 0:01:21]}  Ng6 {[%clk 0:00:57]} 25. exd5 {[%clk 0:01:14]}  exd5 {[%clk 0:00:58]} 26. Qd3 {[%clk 0:01:07]}  Qf7 {[%clk 0:00:58]} 27. Rb1 {[%clk 0:01:01]}  Rce8 {[%clk 0:00:51]} 28. Kh1 {[%clk 0:00:52]}  Re4 {[%clk 0:00:36]} 29. Rb3 {[%clk 0:00:45]}  h5 {[%clk 0:00:36]} 30. Rdb1 {[%clk 0:00:43]}  h4 {[%clk 0:00:30]} 31. Rb7 {[%clk 0:00:41]}  Qf6 {[%clk 0:00:31]} 32. Bh2 {[%clk 0:00:31]}  Qxf2 {[%clk 0:00:31]} 33. Bg1 {[%clk 0:00:31]}  Qf6 {[%clk 0:00:30]} 34. Nf3 {[%clk 0:00:29]}  Qf5 {[%clk 0:00:28]} 35. Ned4 {[%clk 0:00:22]}  Qf6 {[%clk 0:00:27]} 36. Ne2 {[%clk 0:00:20]}  Rd8 {[%clk 0:00:27]} 37. Ra7 {[%clk 0:00:19]}  Nge5 {[%clk 0:00:27]} 38. Nxe5 {[%clk 0:00:18]}  Nxe5 {[%clk 0:00:28]} 39. Qd1 {[%clk 0:00:15]}  Rd7 {[%clk 0:00:22]} 40. Rxd7 {[%clk 0:00:13]}  Nxd7 {[%clk 0:00:23]} 41. Qxd5+ {[%clk 0:00:13]}  Qe6 {[%clk 0:00:23]} 42. Qxe6+ {[%clk 0:00:11]}  Rxe6 {[%clk 0:00:24]} 43. Nd4 {[%clk 0:00:09]}  Re4 {[%clk 0:00:24]} 44. Nf5 {[%clk 0:00:08]}  Bf8 {[%clk 0:00:23]} 45. Rb7 {[%clk 0:00:08]}  Nc5 {[%clk 0:00:23]} 46. Rb8 {[%clk 0:00:08]}  Ne6 {[%clk 0:00:23]} 47. Ra8 {[%clk 0:00:07]}  Rxa4 {[%clk 0:00:23]} 48. Ne7+ {[%clk 0:00:05]}  Kf7 {[%clk 0:00:23]} 49. Nc6 {[%clk 0:00:06]}  Ra1 {[%clk 0:00:23]} 50. Ra7+ {[%clk 0:00:06]}  Kf6 {[%clk 0:00:23]} 51. g4 {[%clk 0:00:02]}  Bc5 {[%clk 0:00:22]} 0-1


[Site "https://www.chess.com"]

[Event "Titled Tuesday Blitz May 18 2021"]
[White "Sevian, Samuel"]
[Black "Kovalev, Vladislav"]
[WhiteFideId "2040506"]
[BlackFideId "13504398"]
[WhiteElo "2982"]
[BlackElo "2573"]
[Result "0-1"]
[Round "05"]
[TimeControl "180+1"]
[Date "2021.05.18"]
[WhiteClock "0:00:11"]
[BlackClock "0:00:12"]

1. e4 {[%clk 0:03:00]}  e5 {[%clk 0:03:00]} 2. Nf3 {[%clk 0:03:00]}  Nc6 {[%clk 0:03:00]} 3. Bb5 {[%clk 0:02:56]}  a6 {[%clk 0:03:01]} 4. Ba4 {[%clk 0:02:56]}  Nf6 {[%clk 0:03:01]} 5. O-O {[%clk 0:02:56]}  Be7 {[%clk 0:03:01]} 6. Re1 {[%clk 0:02:56]}  b5 {[%clk 0:03:02]} 7. Bb3 {[%clk 0:02:56]}  d6 {[%clk 0:03:03]} 8. c3 {[%clk 0:02:57]}  O-O {[%clk 0:03:03]} 9. d4 {[%clk 0:02:57]}  Bg4 {[%clk 0:03:03]} 10. d5 {[%clk 0:02:57]}  Na5 {[%clk 0:03:01]} 11. Bc2 {[%clk 0:02:57]}  c6 {[%clk 0:03:00]} 12. h3 {[%clk 0:02:58]}  Bc8 {[%clk 0:03:01]} 13. dxc6 {[%clk 0:02:58]}  Qc7 {[%clk 0:03:01]} 14. Nbd2 {[%clk 0:02:56]}  Qxc6 {[%clk 0:03:02]} 15. Nf1 {[%clk 0:02:56]}  h6 {[%clk 0:03:01]} 16. Ng3 {[%clk 0:02:56]}  Be6 {[%clk 0:03:02]} 17. Nh4 {[%clk 0:02:45]}  Rfe8 {[%clk 0:02:59]} 18. Nhf5 {[%clk 0:02:45]}  Bf8 {[%clk 0:03:00]} 19. Qf3 {[%clk 0:02:45]}  Nh7 {[%clk 0:02:54]} 20. Rd1 {[%clk 0:02:45]}  Rad8 {[%clk 0:02:47]} 21. a4 {[%clk 0:02:15]}  Nb3 {[%clk 0:02:19]} 22. axb5 {[%clk 0:02:15]}  axb5 {[%clk 0:02:18]} 23. Rb1 {[%clk 0:01:52]}  Nxc1 {[%clk 0:02:11]} 24. Rbxc1 {[%clk 0:01:53]}  g6 {[%clk 0:02:04]} 25. Ne3 {[%clk 0:01:51]}  Ra8 {[%clk 0:01:52]} 26. Nd5 {[%clk 0:01:47]}  h5 {[%clk 0:01:24]} 27. Nf1 {[%clk 0:01:45]}  Bh6 {[%clk 0:01:20]} 28. Nfe3 {[%clk 0:01:45]}  Kg7 {[%clk 0:01:20]} 29. Ra1 {[%clk 0:01:44]}  Rxa1 {[%clk 0:01:17]} 30. Rxa1 {[%clk 0:01:43]}  Ra8 {[%clk 0:01:18]} 31. Rd1 {[%clk 0:01:43]}  Ra7 {[%clk 0:01:04]} 32. Nb4 {[%clk 0:01:41]}  Qc5 {[%clk 0:00:56]} 33. Ned5 {[%clk 0:01:40]}  Bg5 {[%clk 0:00:48]} 34. Bb3 {[%clk 0:01:35]}  Qc8 {[%clk 0:00:34]} 35. Qd3 {[%clk 0:01:23]}  Qc5 {[%clk 0:00:27]} 36. Qe2 {[%clk 0:01:11]}  Bd8 {[%clk 0:00:26]} 37. Nd3 {[%clk 0:01:09]}  Qc8 {[%clk 0:00:24]} 38. Qe3 {[%clk 0:01:08]}  Ra5 {[%clk 0:00:20]} 39. N3b4 {[%clk 0:01:08]}  Qc5 {[%clk 0:00:19]} 40. Qe2 {[%clk 0:01:08]}  Ra8 {[%clk 0:00:17]} 41. Bc2 {[%clk 0:01:07]}  Nf6 {[%clk 0:00:16]} 42. Nxf6 {[%clk 0:01:04]}  Bxf6 {[%clk 0:00:17]} 43. Nd5 {[%clk 0:01:04]}  Bxd5 {[%clk 0:00:15]} 44. Rxd5 {[%clk 0:01:03]}  Ra1+ {[%clk 0:00:15]} 45. Rd1 {[%clk 0:01:01]}  Rxd1+ {[%clk 0:00:15]} 46. Qxd1 {[%clk 0:01:02]}  b4 {[%clk 0:00:15]} 47. cxb4 {[%clk 0:00:54]}  Qxb4 {[%clk 0:00:16]} 48. b3 {[%clk 0:00:54]}  Bg5 {[%clk 0:00:16]} 49. Bd3 {[%clk 0:00:54]}  h4 {[%clk 0:00:15]} 50. Bc4 {[%clk 0:00:54]}  Qd2 {[%clk 0:00:12]} 51. Qxd2 {[%clk 0:00:43]}  Bxd2 {[%clk 0:00:13]} 52. Kf1 {[%clk 0:00:43]}  Bb4 {[%clk 0:00:13]} 53. Ke2 {[%clk 0:00:43]}  f5 {[%clk 0:00:14]} 54. f3 {[%clk 0:00:41]}  fxe4 {[%clk 0:00:13]} 55. fxe4 {[%clk 0:00:41]}  Kf6 {[%clk 0:00:14]} 56. Bb5 {[%clk 0:00:40]}  Kg5 {[%clk 0:00:13]} 57. Be8 {[%clk 0:00:40]}  Bc5 {[%clk 0:00:06]} 58. Kd3 {[%clk 0:00:39]}  Kf6 {[%clk 0:00:05]} 59. Kc4 {[%clk 0:00:40]}  g5 {[%clk 0:00:06]} 60. b4 {[%clk 0:00:40]}  Bd4 {[%clk 0:00:07]} 61. Kd5 {[%clk 0:00:40]}  Ke7 {[%clk 0:00:07]} 62. Ba4 {[%clk 0:00:38]}  Be3 {[%clk 0:00:04]} 63. Kc6 {[%clk 0:00:38]}  Bd4 {[%clk 0:00:04]} 64. Bd1 {[%clk 0:00:37]}  Bc3 {[%clk 0:00:03]} 65. b5 {[%clk 0:00:37]}  Bd4 {[%clk 0:00:03]} 66. b6 {[%clk 0:00:35]}  Kd8 {[%clk 0:00:03]} 67. Bg4 {[%clk 0:00:35]}  Be3 {[%clk 0:00:03]} 68. b7 {[%clk 0:00:33]}  Ba7 {[%clk 0:00:04]} 69. Kxd6 {[%clk 0:00:31]}  Bb8+ {[%clk 0:00:04]} 70. Ke6 {[%clk 0:00:32]}  Kc7 {[%clk 0:00:04]} 71. Kf6 {[%clk 0:00:32]}  Ba7 {[%clk 0:00:04]} 72. Kxg5 {[%clk 0:00:33]}  Bf2 {[%clk 0:00:05]} 73. Kf6 {[%clk 0:00:21]}  Kxb7 {[%clk 0:00:02]} 74. Kxe5 {[%clk 0:00:20]}  Kc7 {[%clk 0:00:03]} 75. Kf6 {[%clk 0:00:20]}  Kd8 {[%clk 0:00:04]} 76. e5 {[%clk 0:00:20]}  Bd4 {[%clk 0:00:03]} 77. Kg5 {[%clk 0:00:21]}  Bxe5 {[%clk 0:00:02]} 78. Kxh4 {[%clk 0:00:21]}  Ke7 {[%clk 0:00:03]} 79. Kg5 {[%clk 0:00:19]}  Bg3 {[%clk 0:00:02]} 80. h4 {[%clk 0:00:19]}  Kf7 {[%clk 0:00:03]} 81. Be2 {[%clk 0:00:19]}  Kg7 {[%clk 0:00:02]} 82. Kg4 {[%clk 0:00:19]}  Be1 {[%clk 0:00:03]} 83. Kh3 {[%clk 0:00:17]}  Kf6 {[%clk 0:00:02]} 84. g4 {[%clk 0:00:17]}  Bd2 {[%clk 0:00:03]} 85. Kg2 {[%clk 0:00:17]}  Be3 {[%clk 0:00:03]} 86. Kf3 {[%clk 0:00:17]}  Bc1 {[%clk 0:00:04]} 87. Bd3 {[%clk 0:00:17]}  Bd2 {[%clk 0:00:04]} 88. Bf5 {[%clk 0:00:15]}  Bc1 {[%clk 0:00:05]} 89. Ke4 {[%clk 0:00:15]}  Bh6 {[%clk 0:00:05]} 90. Bc8 {[%clk 0:00:10]}  Bc1 {[%clk 0:00:06]} 91. Kd5 {[%clk 0:00:10]}  Bd2 {[%clk 0:00:06]} 92. Ba6 {[%clk 0:00:10]}  Bc1 {[%clk 0:00:06]} 93. Bd3 {[%clk 0:00:10]}  Bd2 {[%clk 0:00:07]} 94. Kd6 {[%clk 0:00:10]}  Bc1 {[%clk 0:00:08]} 95. Kd7 {[%clk 0:00:11]}  Bd2 {[%clk 0:00:09]} 96. Ke8 {[%clk 0:00:11]}  Bc1 {[%clk 0:00:09]} 97. Kf8 {[%clk 0:00:12]}  Bd2 {[%clk 0:00:09]} 98. Kg8 {[%clk 0:00:12]}  Bc1 {[%clk 0:00:10]} 99. Kh7 {[%clk 0:00:13]}  Bd2 {[%clk 0:00:10]} 100. h5 {[%clk 0:00:10]}  Bc1 {[%clk 0:00:11]} 101. h6 {[%clk 0:00:11]}  Bd2 {[%clk 0:00:11]} 102. Bf5 {[%clk 0:00:11]}  Be3 {[%clk 0:00:11]} 103. Kg8 {[%clk 0:00:11]}  Bxh6 {[%clk 0:00:12]} 0-1


[Site "https://www.chess.com"]

[Event "Titled Tuesday Blitz May 18 2021"]
[White "Triapishko, Alexandr"]
[Black "Sydoryka, Vladyslav"]
[WhiteFideId "14122286"]
[BlackFideId "14145928"]
[WhiteElo "2490"]
[BlackElo "2245"]
[Result "1-0"]
[Round "05"]
[TimeControl "180+1"]
[Date "2021.05.18"]
[WhiteClock "0:00:03"]
[BlackClock "0:00:10"]

1. d4 {[%clk 0:02:51]}  Nf6 {[%clk 0:02:58]} 2. Bg5 {[%clk 0:02:49]}  e6 {[%clk 0:02:57]} 3. e4 {[%clk 0:02:47]}  h6 {[%clk 0:02:56]} 4. Bxf6 {[%clk 0:02:47]}  Qxf6 {[%clk 0:02:57]} 5. c3 {[%clk 0:02:47]}  d6 {[%clk 0:02:55]} 6. Bc4 {[%clk 0:02:44]}  Qg6 {[%clk 0:02:45]} 7. Qf3 {[%clk 0:02:39]}  Be7 {[%clk 0:02:37]} 8. Ne2 {[%clk 0:02:37]}  c5 {[%clk 0:02:21]} 9. dxc5 {[%clk 0:01:46]}  dxc5 {[%clk 0:02:22]} 10. Bb5+ {[%clk 0:01:14]}  Bd7 {[%clk 0:02:19]} 11. Bxd7+ {[%clk 0:01:12]}  Nxd7 {[%clk 0:02:20]} 12. O-O {[%clk 0:00:35]}  O-O {[%clk 0:01:53]} 13. Nf4 {[%clk 0:00:25]}  Qf6 {[%clk 0:01:50]} 14. Nd2 {[%clk 0:00:25]}  Bd6 {[%clk 0:01:48]} 15. Nd3 {[%clk 0:00:19]}  Qe7 {[%clk 0:01:42]} 16. a4 {[%clk 0:00:16]}  Bc7 {[%clk 0:01:26]} 17. Nc4 {[%clk 0:00:14]}  b6 {[%clk 0:01:14]} 18. e5 {[%clk 0:00:12]}  Rab8 {[%clk 0:01:09]} 19. Rfe1 {[%clk 0:00:09]}  a6 {[%clk 0:01:07]} 20. b3 {[%clk 0:00:03]}  Rfc8 {[%clk 0:01:05]} 21. Rad1 {[%clk 0:00:02]}  b5 {[%clk 0:01:00]} 22. axb5 {[%clk 0:00:03]}  axb5 {[%clk 0:01:01]} 23. Nd6 {[%clk 0:00:03]}  Bxd6 {[%clk 0:00:56]} 24. exd6 {[%clk 0:00:04]}  Qf6 {[%clk 0:00:45]} 25. c4 {[%clk 0:00:03]}  bxc4 {[%clk 0:00:23]} 26. bxc4 {[%clk 0:00:03]}  Rb3 {[%clk 0:00:21]} 27. Qxf6 {[%clk 0:00:03]}  gxf6 {[%clk 0:00:21]} 28. Re3 {[%clk 0:00:02]}  Rc6 {[%clk 0:00:20]} 29. Rg3+ {[%clk 0:00:02]}  Kf8 {[%clk 0:00:20]} 30. Ne5 {[%clk 0:00:02]}  Rxg3 {[%clk 0:00:16]} 31. Nxd7+ {[%clk 0:00:02]}  Ke8 {[%clk 0:00:10]} 32. Nxf6+ {[%clk 0:00:02]}  Kd8 {[%clk 0:00:11]} 33. hxg3 {[%clk 0:00:03]}  Ra6 {[%clk 0:00:11]} 34. f3 {[%clk 0:00:03]}  Ra4 {[%clk 0:00:09]} 35. Rb1 {[%clk 0:00:03]}  Rb4 {[%clk 0:00:09]} 36. Rxb4 {[%clk 0:00:02]}  cxb4 {[%clk 0:00:10]} 37. Ne4 {[%clk 0:00:03]}  b3 {[%clk 0:00:08]} 38. c5 {[%clk 0:00:03]}  b2 {[%clk 0:00:09]} 39. Nc3 {[%clk 0:00:03]}  Kd7 {[%clk 0:00:10]} 40. Kf2 {[%clk 0:00:03]}  Kc6 {[%clk 0:00:10]} 41. Ke3 {[%clk 0:00:04]}  Kxc5 {[%clk 0:00:10]} 42. d7 {[%clk 0:00:04]}  Kb4 {[%clk 0:00:11]} 43. Nb1 {[%clk 0:00:04]}  Kb3 {[%clk 0:00:10]} 44. d8=Q {[%clk 0:00:05]}  Kc2 {[%clk 0:00:11]} 45. Qd3+ {[%clk 0:00:05]}  Kc1 {[%clk 0:00:11]} 46. Nc3 {[%clk 0:00:03]}  b1=Q {[%clk 0:00:10]} 47. Qxb1# {[%clk 0:00:03]} 1-0


[Site "https://www.chess.com"]

[Event "Titled Tuesday Blitz May 18 2021"]
[White "ViditYT"]
[Black "Visakh N R"]
[BlackFideId "25012223"]
[WhiteElo "2947"]
[BlackElo "2428"]
[Result "1/2-1/2"]
[Round "05"]
[TimeControl "180+1"]
[Date "2021.05.18"]
[WhiteClock "0:00:06"]
[BlackClock "0:00:04"]

1. d4 {[%clk 0:03:00]}  Nf6 {[%clk 0:02:59]} 2. c4 {[%clk 0:03:00]}  e6 {[%clk 0:02:59]} 3. Nf3 {[%clk 0:03:00]}  d5 {[%clk 0:02:57]} 4. Nc3 {[%clk 0:03:00]}  dxc4 {[%clk 0:02:57]} 5. e4 {[%clk 0:02:55]}  Bb4 {[%clk 0:02:56]} 6. Bxc4 {[%clk 0:02:54]}  Nxe4 {[%clk 0:02:55]} 7. O-O {[%clk 0:02:55]}  Nxc3 {[%clk 0:02:54]} 8. bxc3 {[%clk 0:02:56]}  Be7 {[%clk 0:02:53]} 9. Ne5 {[%clk 0:02:53]}  O-O {[%clk 0:02:35]} 10. Qg4 {[%clk 0:02:50]}  Nc6 {[%clk 0:01:30]} 11. Bf4 {[%clk 0:02:50]}  Nxe5 {[%clk 0:01:02]} 12. dxe5 {[%clk 0:02:51]}  Kh8 {[%clk 0:00:56]} 13. Rad1 {[%clk 0:02:46]}  Qe8 {[%clk 0:00:56]} 14. Bd3 {[%clk 0:02:05]}  Bd7 {[%clk 0:00:49]} 15. Qh3 {[%clk 0:01:51]}  g6 {[%clk 0:00:46]} 16. Rfe1 {[%clk 0:01:44]}  Rd8 {[%clk 0:00:45]} 17. Qh6 {[%clk 0:01:10]}  Rg8 {[%clk 0:00:40]} 18. Bg5 {[%clk 0:01:08]}  Ba4 {[%clk 0:00:27]} 19. Rd2 {[%clk 0:01:04]}  Bxg5 {[%clk 0:00:20]} 20. Qxg5 {[%clk 0:01:04]}  Qf8 {[%clk 0:00:20]} 21. Re3 {[%clk 0:00:41]}  Qg7 {[%clk 0:00:18]} 22. Rb2 {[%clk 0:00:35]}  Bc6 {[%clk 0:00:15]} 23. h4 {[%clk 0:00:30]}  Rd5 {[%clk 0:00:15]} 24. Qf4 {[%clk 0:00:24]}  Rgd8 {[%clk 0:00:14]} 25. Be2 {[%clk 0:00:20]}  h6 {[%clk 0:00:14]} 26. Kh2 {[%clk 0:00:19]}  R5d7 {[%clk 0:00:13]} 27. a4 {[%clk 0:00:16]}  a6 {[%clk 0:00:13]} 28. a5 {[%clk 0:00:16]}  h5 {[%clk 0:00:08]} 29. Rg3 {[%clk 0:00:14]}  Kh7 {[%clk 0:00:07]} 30. Bxh5 {[%clk 0:00:14]}  Qh6 {[%clk 0:00:08]} 31. Qxh6+ {[%clk 0:00:07]}  Kxh6 {[%clk 0:00:08]} 32. Bf3 {[%clk 0:00:08]}  Bxf3 {[%clk 0:00:06]} 33. Rxf3 {[%clk 0:00:08]}  c6 {[%clk 0:00:06]} 34. Rb4 {[%clk 0:00:09]}  Re7 {[%clk 0:00:05]} 35. Rff4 {[%clk 0:00:07]}  Rd5 {[%clk 0:00:05]} 36. Rb6 {[%clk 0:00:03]}  Rxa5 {[%clk 0:00:05]} 37. Rfb4 {[%clk 0:00:04]}  Rxe5 {[%clk 0:00:05]} 38. Rxb7 {[%clk 0:00:04]}  Rxb7 {[%clk 0:00:06]} 39. Rxb7 {[%clk 0:00:04]}  Kg7 {[%clk 0:00:06]} 40. Rb6 {[%clk 0:00:05]}  Rc5 {[%clk 0:00:06]} 41. Rxa6 {[%clk 0:00:05]}  Rxc3 {[%clk 0:00:06]} 42. g3 {[%clk 0:00:06]}  Rc1 {[%clk 0:00:06]} 43. Kg2 {[%clk 0:00:07]}  c5 {[%clk 0:00:07]} 44. Rc6 {[%clk 0:00:07]}  c4 {[%clk 0:00:07]} 45. Rc7 {[%clk 0:00:07]}  Kf6 {[%clk 0:00:07]} 46. g4 {[%clk 0:00:08]}  c3 {[%clk 0:00:07]} 47. g5+ {[%clk 0:00:08]}  Ke5 {[%clk 0:00:07]} 48. Rxf7 {[%clk 0:00:08]}  Rd1 {[%clk 0:00:05]} 49. Rc7 {[%clk 0:00:08]}  Rd3 {[%clk 0:00:05]} 50. h5 {[%clk 0:00:06]}  gxh5 {[%clk 0:00:05]} 51. g6 {[%clk 0:00:07]}  Rd4 {[%clk 0:00:04]} 52. Rxc3 {[%clk 0:00:06]}  Rg4+ {[%clk 0:00:05]} 53. Kh3 {[%clk 0:00:05]}  Rxg6 {[%clk 0:00:04]} 54. Kh4 {[%clk 0:00:05]}  Rf6 {[%clk 0:00:04]} 55. Re3+ {[%clk 0:00:04]}  Kd5 {[%clk 0:00:04]} 56. f3 {[%clk 0:00:02]}  Rf5 {[%clk 0:00:04]} 57. Kg3 {[%clk 0:00:03]}  e5 {[%clk 0:00:04]} 58. Re1 {[%clk 0:00:03]}  Rf4 {[%clk 0:00:05]} 59. Rd1+ {[%clk 0:00:03]}  Ke6 {[%clk 0:00:04]} 60. Rh1 {[%clk 0:00:03]}  h4+ {[%clk 0:00:03]} 61. Rxh4 {[%clk 0:00:03]}  Kf5 {[%clk 0:00:03]} 62. Rh5+ {[%clk 0:00:03]}  Kf6 {[%clk 0:00:03]} 63. Rh6+ {[%clk 0:00:04]}  Kf5 {[%clk 0:00:03]} 64. Rh8 {[%clk 0:00:04]}  Rd4 {[%clk 0:00:03]} 65. Rf8+ {[%clk 0:00:05]}  Ke6 {[%clk 0:00:03]} 66. Re8+ {[%clk 0:00:05]}  Kf5 {[%clk 0:00:04]} 67. Ra8 {[%clk 0:00:05]}  Kf6 {[%clk 0:00:04]} 68. Ra6+ {[%clk 0:00:06]}  Kf5 {[%clk 0:00:04]} 69. Ra5 {[%clk 0:00:06]}  Rc4 {[%clk 0:00:04]} 70. Rb5 {[%clk 0:00:06]}  Rd4 {[%clk 0:00:04]} 71. Ra5 {[%clk 0:00:07]}  Rb4 {[%clk 0:00:05]} 72. Ra1 {[%clk 0:00:07]}  Rc4 {[%clk 0:00:05]} 73. Rh1 {[%clk 0:00:07]}  Rb4 {[%clk 0:00:05]} 74. Rh5+ {[%clk 0:00:07]}  Kf6 {[%clk 0:00:05]} 75. Rh8 {[%clk 0:00:07]}  Rb3 {[%clk 0:00:05]} 76. Kg4 {[%clk 0:00:07]}  Rb4+ {[%clk 0:00:05]} 77. Kg3 {[%clk 0:00:08]}  Rb3 {[%clk 0:00:05]} 78. Re8 {[%clk 0:00:08]}  Kf5 {[%clk 0:00:05]} 79. Rf8+ {[%clk 0:00:09]}  Ke6 {[%clk 0:00:05]} 80. Kg4 {[%clk 0:00:09]}  Rb1 {[%clk 0:00:05]} 81. Re8+ {[%clk 0:00:08]}  Kf6 {[%clk 0:00:05]} 82. Rf8+ {[%clk 0:00:09]}  Kg6 {[%clk 0:00:05]} 83. Re8 {[%clk 0:00:08]}  Rg1+ {[%clk 0:00:05]} 84. Kh3 {[%clk 0:00:09]}  Kf6 {[%clk 0:00:06]} 85. Rf8+ {[%clk 0:00:09]}  Ke7 {[%clk 0:00:06]} 86. Ra8 {[%clk 0:00:07]}  Ke6 {[%clk 0:00:06]} 87. Rf8 {[%clk 0:00:07]}  Kd5 {[%clk 0:00:05]} 88. Re8 {[%clk 0:00:07]}  Kd4 {[%clk 0:00:05]} 89. Kh2 {[%clk 0:00:08]}  Rg7 {[%clk 0:00:05]} 90. Kh3 {[%clk 0:00:07]}  Rg6 {[%clk 0:00:05]} 91. Kh4 {[%clk 0:00:07]}  Rg7 {[%clk 0:00:05]} 92. Kh3 {[%clk 0:00:06]}  Rg5 {[%clk 0:00:05]} 93. Kh4 {[%clk 0:00:07]}  Rf5 {[%clk 0:00:05]} 94. Kg3 {[%clk 0:00:07]}  Rf4 {[%clk 0:00:05]} 95. Kf2 {[%clk 0:00:06]}  e4 {[%clk 0:00:04]} 96. Rxe4+ {[%clk 0:00:05]}  Rxe4 {[%clk 0:00:03]} 97. fxe4 {[%clk 0:00:06]}  Kxe4 {[%clk 0:00:04]} 1/2-1/2


[Site "https://www.chess.com"]

[Event "Titled Tuesday Blitz May 18 2021"]
[White "Alekseenko, Kirill"]
[Black "Moskalenko, Alexander"]
[WhiteFideId "4135539"]
[BlackFideId "4155351"]
[WhiteElo "2580"]
[BlackElo "2495"]
[Result "1-0"]
[Round "06"]
[TimeControl "180+1"]
[Date "2021.05.18"]
[WhiteClock "0:00:08"]
[BlackClock "0:00:09"]

1. d4 {[%clk 0:03:00]}  e6 {[%clk 0:03:00]} 2. Bf4 {[%clk 0:02:58]}  c5 {[%clk 0:02:59]} 3. e3 {[%clk 0:02:56]}  Nf6 {[%clk 0:02:51]} 4. Nc3 {[%clk 0:02:53]}  cxd4 {[%clk 0:02:34]} 5. exd4 {[%clk 0:02:54]}  a6 {[%clk 0:02:34]} 6. Bd3 {[%clk 0:02:45]}  b6 {[%clk 0:02:22]} 7. Nf3 {[%clk 0:02:36]}  Bb7 {[%clk 0:02:22]} 8. O-O {[%clk 0:02:36]}  d6 {[%clk 0:02:23]} 9. Re1 {[%clk 0:02:26]}  Be7 {[%clk 0:02:23]} 10. Qe2 {[%clk 0:02:18]}  Nbd7 {[%clk 0:02:23]} 11. Ng5 {[%clk 0:02:13]}  O-O {[%clk 0:02:12]} 12. h4 {[%clk 0:01:52]}  Re8 {[%clk 0:02:05]} 13. Nxf7 {[%clk 0:01:45]}  Kxf7 {[%clk 0:02:00]} 14. Qxe6+ {[%clk 0:01:45]}  Kf8 {[%clk 0:02:00]} 15. Re3 {[%clk 0:01:24]}  d5 {[%clk 0:01:48]} 16. Rae1 {[%clk 0:01:14]}  Bb4 {[%clk 0:01:38]} 17. Bd6+ {[%clk 0:01:14]}  Bxd6 {[%clk 0:01:38]} 18. Qxd6+ {[%clk 0:01:15]}  Kf7 {[%clk 0:01:39]} 19. Bf5 {[%clk 0:01:11]}  Rxe3 {[%clk 0:01:31]} 20. Rxe3 {[%clk 0:01:12]}  Nf8 {[%clk 0:01:30]} 21. Qf4 {[%clk 0:01:03]}  Ng6 {[%clk 0:01:23]} 22. Qg5 {[%clk 0:00:59]}  Qd6 {[%clk 0:01:05]} 23. Re6 {[%clk 0:00:47]}  Qxe6 {[%clk 0:00:46]} 24. Bxe6+ {[%clk 0:00:47]}  Kxe6 {[%clk 0:00:47]} 25. h5 {[%clk 0:00:47]}  Ne7 {[%clk 0:00:48]} 26. Qxg7 {[%clk 0:00:45]}  Rg8 {[%clk 0:00:38]} 27. Qh6 {[%clk 0:00:45]}  Nf5 {[%clk 0:00:38]} 28. Qf4 {[%clk 0:00:43]}  Ne7 {[%clk 0:00:30]} 29. f3 {[%clk 0:00:39]}  Kf7 {[%clk 0:00:19]} 30. g4 {[%clk 0:00:39]}  Bc8 {[%clk 0:00:20]} 31. Kf2 {[%clk 0:00:35]}  Bxg4 {[%clk 0:00:19]} 32. fxg4 {[%clk 0:00:31]}  Rxg4 {[%clk 0:00:20]} 33. Qc7 {[%clk 0:00:30]}  Rxd4 {[%clk 0:00:20]} 34. Ke2 {[%clk 0:00:28]}  Rh4 {[%clk 0:00:19]} 35. Qxb6 {[%clk 0:00:28]}  Rxh5 {[%clk 0:00:17]} 36. Qxa6 {[%clk 0:00:27]}  Rh2+ {[%clk 0:00:16]} 37. Kf1 {[%clk 0:00:27]}  Rxc2 {[%clk 0:00:15]} 38. Nb5 {[%clk 0:00:25]}  Nf5 {[%clk 0:00:14]} 39. Qa7+ {[%clk 0:00:20]}  Kg6 {[%clk 0:00:14]} 40. Qg1+ {[%clk 0:00:20]}  Kf7 {[%clk 0:00:14]} 41. Qa7+ {[%clk 0:00:20]}  Kg6 {[%clk 0:00:14]} 42. Nd4 {[%clk 0:00:20]}  Ne3+ {[%clk 0:00:12]} 43. Ke1 {[%clk 0:00:19]}  Rxb2 {[%clk 0:00:12]} 44. Ne6 {[%clk 0:00:15]}  Ng2+ {[%clk 0:00:10]} 45. Kf1 {[%clk 0:00:16]}  Ne4 {[%clk 0:00:09]} 46. Qg7+ {[%clk 0:00:15]}  Kf5 {[%clk 0:00:10]} 47. Qxb2 {[%clk 0:00:12]}  Ne3+ {[%clk 0:00:10]} 48. Ke2 {[%clk 0:00:10]}  Nc4 {[%clk 0:00:09]} 49. Nd4+ {[%clk 0:00:10]}  Ke5 {[%clk 0:00:09]} 50. Nf3+ {[%clk 0:00:11]}  Kf4 {[%clk 0:00:09]} 51. Qb8+ {[%clk 0:00:11]}  Kf5 {[%clk 0:00:09]} 52. Nd4+ {[%clk 0:00:11]}  Kg4 {[%clk 0:00:09]} 53. a4 {[%clk 0:00:09]}  Nc3+ {[%clk 0:00:09]} 54. Kf1 {[%clk 0:00:09]}  Nxa4 {[%clk 0:00:09]} 55. Qf8 {[%clk 0:00:08]}  Nc3 {[%clk 0:00:09]} 56. Qf3+ {[%clk 0:00:08]} 1-0


[Site "https://www.chess.com"]